[Event "Early Titled Tuesday Blitz | February 8 2022"]
[White "Nguyen, Ngoc Truong Son"]
[Black "Saravana, Krishnan P."]
[WhiteFideId "12401110"]
[BlackFideId "5018382"]
[WhiteElo "2836"]
[BlackElo "2596"]
[Result "0-1"]
[Round "03"]
[TimeControl "180+1"]
[Date "2022.02.08"]
[WhiteClock "0:00:04"]
[BlackClock "0:00:15"]

1. d4 {[%clk 0:03:00]}  Nf6 {[%clk 0:02:59]} 2. Nf3 {[%clk 0:03:01]}  g6 {[%clk 0:02:59]} 3. Nc3 {[%clk 0:03:01]}  Bg7 {[%clk 0:02:59]} 4. e4 {[%clk 0:03:01]}  d6 {[%clk 0:02:59]} 5. Be3 {[%clk 0:03:01]}  O-O {[%clk 0:02:57]} 6. Qd2 {[%clk 0:03:00]}  Ng4 {[%clk 0:02:57]} 7. Bf4 {[%clk 0:02:59]}  e5 {[%clk 0:02:56]} 8. dxe5 {[%clk 0:02:59]}  dxe5 {[%clk 0:02:55]} 9. Qxd8 {[%clk 0:02:59]}  Rxd8 {[%clk 0:02:55]} 10. Bg3 {[%clk 0:02:58]}  Nc6 {[%clk 0:02:48]} 11. Nd5 {[%clk 0:02:54]}  f5 {[%clk 0:02:30]} 12. Bc4 {[%clk 0:02:48]}  Kh8 {[%clk 0:02:26]} 13. Ng5 {[%clk 0:02:44]}  Nh6 {[%clk 0:02:23]} 14. O-O-O {[%clk 0:02:34]}  Bd7 {[%clk 0:02:18]} 15. h4 {[%clk 0:02:05]}  f4 {[%clk 0:02:15]} 16. h5 {[%clk 0:01:40]}  fxg3 {[%clk 0:01:51]} 17. hxg6 {[%clk 0:01:40]}  Be8 {[%clk 0:01:51]} 18. Nxh7 {[%clk 0:01:04]}  Bxg6 {[%clk 0:01:44]} 19. Ng5 {[%clk 0:01:04]}  gxf2 {[%clk 0:01:40]} 20. Rdf1 {[%clk 0:01:00]}  Rf8 {[%clk 0:01:40]} 21. Nxc7 {[%clk 0:00:59]}  Rac8 {[%clk 0:01:23]} 22. Nce6 {[%clk 0:00:59]}  Nd4 {[%clk 0:01:23]} 23. Nxf8 {[%clk 0:00:54]}  Bxf8 {[%clk 0:01:15]} 24. Bd3 {[%clk 0:00:44]}  Kg7 {[%clk 0:01:11]} 25. Rxf2 {[%clk 0:00:39]}  Be7 {[%clk 0:01:12]} 26. Nf3 {[%clk 0:00:38]}  Ng4 {[%clk 0:01:11]} 27. Re2 {[%clk 0:00:35]}  Nxe2+ {[%clk 0:01:11]} 28. Bxe2 {[%clk 0:00:36]}  Ne3 {[%clk 0:01:10]} 29. Bd3 {[%clk 0:00:35]}  Bf6 {[%clk 0:01:08]} 30. Ne1 {[%clk 0:00:18]}  Bg5 {[%clk 0:01:02]} 31. Kb1 {[%clk 0:00:17]}  Rh8 {[%clk 0:01:00]} 32. Rg1 {[%clk 0:00:16]}  Bf6 {[%clk 0:00:54]} 33. Nf3 {[%clk 0:00:15]}  Ng4 {[%clk 0:00:53]} 34. a4 {[%clk 0:00:15]}  Nf2 {[%clk 0:00:52]} 35. Re1 {[%clk 0:00:15]}  Nxd3 {[%clk 0:00:51]} 36. cxd3 {[%clk 0:00:16]}  Rd8 {[%clk 0:00:51]} 37. Kc2 {[%clk 0:00:16]}  Be8 {[%clk 0:00:52]} 38. b3 {[%clk 0:00:16]}  Rc8+ {[%clk 0:00:52]} 39. Kd2 {[%clk 0:00:15]}  Bf7 {[%clk 0:00:52]} 40. Rb1 {[%clk 0:00:15]}  Rh8 {[%clk 0:00:50]} 41. b4 {[%clk 0:00:15]}  Be6 {[%clk 0:00:50]} 42. b5 {[%clk 0:00:14]}  Bg4 {[%clk 0:00:50]} 43. b6 {[%clk 0:00:12]}  a6 {[%clk 0:00:49]} 44. Rc1 {[%clk 0:00:11]}  Bxf3 {[%clk 0:00:49]} 45. Rc7+ {[%clk 0:00:12]}  Kg6 {[%clk 0:00:49]} 46. gxf3 {[%clk 0:00:13]}  Rh7 {[%clk 0:00:46]} 47. Kc3 {[%clk 0:00:13]}  Bd8 {[%clk 0:00:45]} 48. Rxh7 {[%clk 0:00:13]}  Kxh7 {[%clk 0:00:45]} 49. a5 {[%clk 0:00:14]}  Kg6 {[%clk 0:00:45]} 50. Kc4 {[%clk 0:00:13]}  Be7 {[%clk 0:00:42]} 51. Kd5 {[%clk 0:00:13]}  Bb4 {[%clk 0:00:42]} 52. Kxe5 {[%clk 0:00:13]}  Bxa5 {[%clk 0:00:42]} 53. d4 {[%clk 0:00:13]}  Bxb6 {[%clk 0:00:42]} 54. f4 {[%clk 0:00:12]}  a5 {[%clk 0:00:42]} 55. f5+ {[%clk 0:00:12]}  Kf7 {[%clk 0:00:42]} 56. Kd5 {[%clk 0:00:12]}  a4 {[%clk 0:00:42]} 57. Kc4 {[%clk 0:00:13]}  a3 {[%clk 0:00:40]} 58. Kb3 {[%clk 0:00:12]}  Bxd4 {[%clk 0:00:40]} 59. Kxa3 {[%clk 0:00:12]}  Kf6 {[%clk 0:00:41]} 60. Kb4 {[%clk 0:00:13]}  Ke5 {[%clk 0:00:41]} 61. Kb5 {[%clk 0:00:13]}  Ba7 {[%clk 0:00:32]} 62. Ka5 {[%clk 0:00:14]}  Bd4 {[%clk 0:00:30]} 63. Kb5 {[%clk 0:00:14]}  Kd6 {[%clk 0:00:28]} 64. Kc4 {[%clk 0:00:14]}  Bf6 {[%clk 0:00:27]} 65. Kb5 {[%clk 0:00:14]}  Bd8 {[%clk 0:00:25]} 66. Kb4 {[%clk 0:00:13]}  Kc6 {[%clk 0:00:18]} 67. e5 {[%clk 0:00:12]}  Be7+ {[%clk 0:00:19]} 68. Kc4 {[%clk 0:00:10]}  b5+ {[%clk 0:00:19]} 69. Kd4 {[%clk 0:00:10]}  Bc5+ {[%clk 0:00:19]} 70. Ke4 {[%clk 0:00:10]}  b4 {[%clk 0:00:19]} 71. f6 {[%clk 0:00:09]}  Kd7 {[%clk 0:00:17]} 72. Kd5 {[%clk 0:00:04]}  b3 {[%clk 0:00:16]} 73. e6+ {[%clk 0:00:05]}  Ke8 {[%clk 0:00:15]} 74. Kxc5 {[%clk 0:00:04]}  b2 {[%clk 0:00:15]} 75. Kd6 {[%clk 0:00:04]}  b1=Q {[%clk 0:00:15]} 0-1


[Site "https://www.chess.com"]

[Event "Early Titled Tuesday Blitz | February 8 2022"]
[White "Niemann, Hans Moke"]
[Black "Bocharov, Dmitry"]
[WhiteFideId "2093596"]
[BlackFideId "4138716"]
[WhiteElo "2636"]
[BlackElo "2541"]
[Result "1/2-1/2"]
[Round "03"]
[TimeControl "180+1"]
[Date "2022.02.08"]
[WhiteClock "0:00:22"]
[BlackClock "0:00:17"]

1. d4 {[%clk 0:03:00]}  Nf6 {[%clk 0:02:59]} 2. Nc3 {[%clk 0:02:53]}  e6 {[%clk 0:03:00]} 3. Bf4 {[%clk 0:02:49]}  Bb4 {[%clk 0:02:52]} 4. Qd3 {[%clk 0:02:49]}  O-O {[%clk 0:02:40]} 5. a3 {[%clk 0:02:39]}  Bxc3+ {[%clk 0:02:37]} 6. Qxc3 {[%clk 0:02:40]}  Nd5 {[%clk 0:02:37]} 7. Qg3 {[%clk 0:02:41]}  Nxf4 {[%clk 0:02:37]} 8. Qxf4 {[%clk 0:02:42]}  d6 {[%clk 0:02:35]} 9. Nf3 {[%clk 0:02:37]}  Nd7 {[%clk 0:02:33]} 10. e4 {[%clk 0:02:33]}  e5 {[%clk 0:02:33]} 11. dxe5 {[%clk 0:02:28]}  dxe5 {[%clk 0:02:33]} 12. Qe3 {[%clk 0:02:23]}  Qe7 {[%clk 0:02:31]} 13. Bc4 {[%clk 0:02:21]}  Nb6 {[%clk 0:02:26]} 14. Be2 {[%clk 0:02:17]}  Bd7 {[%clk 0:02:24]} 15. O-O {[%clk 0:02:14]}  a5 {[%clk 0:02:20]} 16. c4 {[%clk 0:01:58]}  Na4 {[%clk 0:02:10]} 17. b3 {[%clk 0:01:58]}  Nc5 {[%clk 0:02:06]} 18. b4 {[%clk 0:01:57]}  axb4 {[%clk 0:02:03]} 19. axb4 {[%clk 0:01:58]}  Na6 {[%clk 0:02:01]} 20. Ra5 {[%clk 0:01:38]}  Qxb4 {[%clk 0:01:37]} 21. Rxe5 {[%clk 0:01:33]}  Rfe8 {[%clk 0:01:34]} 22. Rd1 {[%clk 0:01:30]}  Ba4 {[%clk 0:01:32]} 23. Rd2 {[%clk 0:01:17]}  f6 {[%clk 0:01:17]} 24. Rxe8+ {[%clk 0:01:14]}  Rxe8 {[%clk 0:01:18]} 25. e5 {[%clk 0:01:08]}  fxe5 {[%clk 0:01:12]} 26. Nxe5 {[%clk 0:00:57]}  Qc5 {[%clk 0:00:38]} 27. Qxc5 {[%clk 0:00:53]}  Nxc5 {[%clk 0:00:37]} 28. f4 {[%clk 0:00:54]}  g5 {[%clk 0:00:33]} 29. Bh5 {[%clk 0:00:54]}  Re7 {[%clk 0:00:31]} 30. g3 {[%clk 0:00:54]}  gxf4 {[%clk 0:00:28]} 31. gxf4 {[%clk 0:00:55]}  Kg7 {[%clk 0:00:28]} 32. Kg2 {[%clk 0:00:50]}  Be8 {[%clk 0:00:24]} 33. Bxe8 {[%clk 0:00:48]}  Rxe8 {[%clk 0:00:25]} 34. Kf3 {[%clk 0:00:49]}  Re7 {[%clk 0:00:23]} 35. Kg4 {[%clk 0:00:48]}  Kf6 {[%clk 0:00:21]} 36. Kf3 {[%clk 0:00:48]}  b6 {[%clk 0:00:21]} 37. Rd8 {[%clk 0:00:47]}  Rg7 {[%clk 0:00:21]} 38. Rf8+ {[%clk 0:00:44]}  Ke6 {[%clk 0:00:21]} 39. Ng4 {[%clk 0:00:40]}  Rd7 {[%clk 0:00:20]} 40. f5+ {[%clk 0:00:38]}  Ke7 {[%clk 0:00:21]} 41. Rh8 {[%clk 0:00:38]}  Rd3+ {[%clk 0:00:21]} 42. Ke2 {[%clk 0:00:38]}  Rh3 {[%clk 0:00:21]} 43. Kf2 {[%clk 0:00:36]}  h5 {[%clk 0:00:18]} 44. Rh7+ {[%clk 0:00:35]}  Kd6 {[%clk 0:00:17]} 45. Nh6 {[%clk 0:00:34]}  Ke5 {[%clk 0:00:17]} 46. Kg2 {[%clk 0:00:30]}  Rc3 {[%clk 0:00:16]} 47. Re7+ {[%clk 0:00:30]}  Kf6 {[%clk 0:00:16]} 48. Rxc7 {[%clk 0:00:30]}  Rxc4 {[%clk 0:00:16]} 49. Rc6+ {[%clk 0:00:30]}  Kg7 {[%clk 0:00:14]} 50. Rg6+ {[%clk 0:00:29]}  Kh7 {[%clk 0:00:15]} 51. Nf7 {[%clk 0:00:26]}  Rg4+ {[%clk 0:00:15]} 52. Rxg4 {[%clk 0:00:24]}  hxg4 {[%clk 0:00:16]} 53. Kg3 {[%clk 0:00:20]}  b5 {[%clk 0:00:16]} 54. Kxg4 {[%clk 0:00:20]}  b4 {[%clk 0:00:17]} 55. Nd6 {[%clk 0:00:19]}  b3 {[%clk 0:00:16]} 56. Nc4 {[%clk 0:00:19]}  Nd3 {[%clk 0:00:16]} 57. Kg5 {[%clk 0:00:19]}  b2 {[%clk 0:00:15]} 58. Nd2 {[%clk 0:00:20]}  Ne5 {[%clk 0:00:15]} 59. Kf6 {[%clk 0:00:16]}  Nf3 {[%clk 0:00:15]} 60. Nb1 {[%clk 0:00:16]}  Nxh2 {[%clk 0:00:15]} 61. Ke7 {[%clk 0:00:17]}  Ng4 {[%clk 0:00:15]} 62. f6 {[%clk 0:00:18]}  Nxf6 {[%clk 0:00:15]} 63. Kxf6 {[%clk 0:00:19]}  Kh6 {[%clk 0:00:15]} 64. Ke5 {[%clk 0:00:20]}  Kh5 {[%clk 0:00:15]} 65. Kd4 {[%clk 0:00:21]}  Kh4 {[%clk 0:00:16]} 66. Kc3 {[%clk 0:00:22]}  Kh3 {[%clk 0:00:17]} 67. Kxb2 {[%clk 0:00:22]} 1/2-1/2


[Site "https://www.chess.com"]

[Event "Early Titled Tuesday Blitz | February 8 2022"]
[White "Nilsen, Tobias Lang"]
[Black "Shyaamnikhil P"]
[WhiteFideId "1521624"]
[BlackFideId "5024218"]
[WhiteElo "2013"]
[BlackElo "2292"]
[Result "1/2-1/2"]
[Round "03"]
[TimeControl "180+1"]
[Date "2022.02.08"]
[WhiteClock "0:00:38"]
[BlackClock "0:01:00"]

1. f4 {[%clk 0:02:22]}  g6 {[%clk 0:02:52]} 2. Nf3 {[%clk 0:02:21]}  Bg7 {[%clk 0:02:52]} 3. g3 {[%clk 0:02:22]}  d5 {[%clk 0:02:50]} 4. Bg2 {[%clk 0:02:22]}  c5 {[%clk 0:02:50]} 5. O-O {[%clk 0:02:22]}  Nc6 {[%clk 0:02:50]} 6. d3 {[%clk 0:02:21]}  Nf6 {[%clk 0:02:44]} 7. Nc3 {[%clk 0:02:20]}  d4 {[%clk 0:02:35]} 8. Na4 {[%clk 0:02:20]}  Nd7 {[%clk 0:02:33]} 9. c4 {[%clk 0:02:20]}  Qc7 {[%clk 0:02:30]} 10. e4 {[%clk 0:02:18]}  a6 {[%clk 0:02:24]} 11. b3 {[%clk 0:02:01]}  b5 {[%clk 0:02:24]} 12. Nb2 {[%clk 0:02:01]}  Bb7 {[%clk 0:02:24]} 13. cxb5 {[%clk 0:01:57]}  axb5 {[%clk 0:02:24]} 14. a4 {[%clk 0:01:57]}  Nb4 {[%clk 0:02:19]} 15. Rb1 {[%clk 0:01:57]}  Na2 {[%clk 0:02:18]} 16. Bd2 {[%clk 0:01:53]}  Nc3 {[%clk 0:02:18]} 17. Qc2 {[%clk 0:01:46]}  b4 {[%clk 0:02:06]} 18. Bxc3 {[%clk 0:01:41]}  dxc3 {[%clk 0:02:05]} 19. Nc4 {[%clk 0:01:42]}  Nb6 {[%clk 0:02:04]} 20. e5 {[%clk 0:01:39]}  Nxc4 {[%clk 0:01:59]} 21. dxc4 {[%clk 0:01:38]}  O-O {[%clk 0:01:59]} 22. Rbd1 {[%clk 0:01:37]}  Rfd8 {[%clk 0:01:58]} 23. Ng5 {[%clk 0:01:33]}  Rd4 {[%clk 0:01:47]} 24. Nf3 {[%clk 0:01:30]}  Bxf3 {[%clk 0:01:43]} 25. Bxf3 {[%clk 0:01:30]}  Rad8 {[%clk 0:01:43]} 26. Rxd4 {[%clk 0:01:30]}  cxd4 {[%clk 0:01:38]} 27. Qd3 {[%clk 0:01:29]}  e6 {[%clk 0:01:33]} 28. Ra1 {[%clk 0:01:27]}  Qa5 {[%clk 0:01:32]} 29. h4 {[%clk 0:01:23]}  h5 {[%clk 0:01:30]} 30. Kg2 {[%clk 0:01:21]}  Kf8 {[%clk 0:01:24]} 31. Be4 {[%clk 0:01:18]}  Rd7 {[%clk 0:01:19]} 32. Rf1 {[%clk 0:01:11]}  Ke7 {[%clk 0:01:17]} 33. Rd1 {[%clk 0:01:10]}  Kd8 {[%clk 0:01:14]} 34. Kf3 {[%clk 0:01:07]}  Bf8 {[%clk 0:01:14]} 35. Ke2 {[%clk 0:01:06]}  Bc5 {[%clk 0:01:15]} 36. Rf1 {[%clk 0:01:05]}  Qc7 {[%clk 0:01:11]} 37. Kd1 {[%clk 0:01:03]}  Kc8 {[%clk 0:01:07]} 38. Kc2 {[%clk 0:01:01]}  Kb8 {[%clk 0:01:07]} 39. Rd1 {[%clk 0:01:01]}  Ka7 {[%clk 0:01:07]} 40. Bf3 {[%clk 0:01:01]}  Kb6 {[%clk 0:01:02]} 41. Qe4 {[%clk 0:00:47]}  Rd8 {[%clk 0:01:01]} 42. Qd3 {[%clk 0:00:38]}  Ka5 {[%clk 0:01:00]} 1/2-1/2


[Site "https://www.chess.com"]

[Event "Early Titled Tuesday Blitz | February 8 2022"]
[White "Ozer, Omer Faruk"]
[Black "Wahedi, Ahmad Siar"]
[WhiteFideId "6354564"]
[BlackFideId "4651260"]
[WhiteElo "2050"]
[BlackElo "2376"]
[Result "1-0"]
[Round "03"]
[TimeControl "180+1"]
[Date "2022.02.08"]
[WhiteClock "0:00:40"]
[BlackClock "0:00:26"]

1. e4 {[%clk 0:03:00]}  Nf6 {[%clk 0:03:00]} 2. e5 {[%clk 0:03:00]}  Nd5 {[%clk 0:03:01]} 3. d4 {[%clk 0:03:00]}  Nb6 {[%clk 0:03:01]} 4. c4 {[%clk 0:03:00]}  d6 {[%clk 0:03:01]} 5. exd6 {[%clk 0:03:00]}  exd6 {[%clk 0:03:02]} 6. h3 {[%clk 0:02:59]}  Nc6 {[%clk 0:03:02]} 7. Nf3 {[%clk 0:02:59]}  Bf5 {[%clk 0:03:01]} 8. Bd3 {[%clk 0:02:58]}  Bxd3 {[%clk 0:03:00]} 9. Qxd3 {[%clk 0:02:59]}  Be7 {[%clk 0:03:00]} 10. O-O {[%clk 0:02:59]}  O-O {[%clk 0:03:00]} 11. b3 {[%clk 0:02:58]}  Bf6 {[%clk 0:02:59]} 12. Be3 {[%clk 0:02:57]}  d5 {[%clk 0:02:58]} 13. c5 {[%clk 0:02:55]}  Nc8 {[%clk 0:02:58]} 14. Nc3 {[%clk 0:02:53]}  N8e7 {[%clk 0:02:57]} 15. a3 {[%clk 0:02:53]}  g6 {[%clk 0:02:56]} 16. b4 {[%clk 0:02:43]}  a6 {[%clk 0:02:55]} 17. Rab1 {[%clk 0:02:30]}  Nf5 {[%clk 0:02:54]} 18. g4 {[%clk 0:02:29]}  Nxe3 {[%clk 0:02:52]} 19. fxe3 {[%clk 0:02:30]}  Re8 {[%clk 0:02:47]} 20. Rbe1 {[%clk 0:02:25]}  Bg7 {[%clk 0:02:15]} 21. Re2 {[%clk 0:02:15]}  Qd7 {[%clk 0:02:05]} 22. Ne1 {[%clk 0:02:04]}  Re7 {[%clk 0:02:00]} 23. Ng2 {[%clk 0:02:02]}  Nd8 {[%clk 0:01:55]} 24. Nf4 {[%clk 0:01:56]}  c6 {[%clk 0:01:55]} 25. Na4 {[%clk 0:01:57]}  Qc7 {[%clk 0:01:43]} 26. Nb6 {[%clk 0:01:56]}  Rb8 {[%clk 0:01:43]} 27. Nfxd5 {[%clk 0:01:49]}  cxd5 {[%clk 0:01:43]} 28. Nxd5 {[%clk 0:01:49]}  Qd7 {[%clk 0:01:42]} 29. Nxe7+ {[%clk 0:01:48]}  Qxe7 {[%clk 0:01:42]} 30. d5 {[%clk 0:01:43]}  Qe5 {[%clk 0:01:36]} 31. e4 {[%clk 0:01:38]}  f6 {[%clk 0:01:26]} 32. d6 {[%clk 0:01:23]}  Nc6 {[%clk 0:01:25]} 33. Qd5+ {[%clk 0:01:11]}  Kh8 {[%clk 0:01:14]} 34. Kg2 {[%clk 0:01:07]}  Re8 {[%clk 0:01:09]} 35. Rd1 {[%clk 0:01:00]}  Qxd5 {[%clk 0:00:58]} 36. Rxd5 {[%clk 0:00:59]}  Ne5 {[%clk 0:00:57]} 37. a4 {[%clk 0:00:52]}  Kg8 {[%clk 0:00:55]} 38. b5 {[%clk 0:00:52]}  axb5 {[%clk 0:00:55]} 39. axb5 {[%clk 0:00:53]}  Kf7 {[%clk 0:00:48]} 40. d7 {[%clk 0:00:47]}  Rd8 {[%clk 0:00:47]} 41. Rxe5 {[%clk 0:00:44]}  fxe5 {[%clk 0:00:46]} 42. c6 {[%clk 0:00:45]}  bxc6 {[%clk 0:00:42]} 43. bxc6 {[%clk 0:00:46]}  Ke7 {[%clk 0:00:38]} 44. c7 {[%clk 0:00:45]}  Kxd7 {[%clk 0:00:38]} 45. cxd8=Q+ {[%clk 0:00:45]}  Kxd8 {[%clk 0:00:38]} 46. Ra2 {[%clk 0:00:45]}  Bf6 {[%clk 0:00:34]} 47. Ra7 {[%clk 0:00:44]}  h6 {[%clk 0:00:33]} 48. Rh7 {[%clk 0:00:41]}  Bg5 {[%clk 0:00:30]} 49. Rg7 {[%clk 0:00:40]}  Ke8 {[%clk 0:00:29]} 50. Rxg6 {[%clk 0:00:40]}  Kf7 {[%clk 0:00:29]} 51. Ra6 {[%clk 0:00:40]}  Ke7 {[%clk 0:00:29]} 52. Kg3 {[%clk 0:00:41]}  Kf7 {[%clk 0:00:27]} 53. h4 {[%clk 0:00:41]}  Bf4+ {[%clk 0:00:27]} 54. Kf3 {[%clk 0:00:41]}  Ke7 {[%clk 0:00:27]} 55. Ke2 {[%clk 0:00:41]}  Kf7 {[%clk 0:00:27]} 56. Kd3 {[%clk 0:00:41]}  Ke7 {[%clk 0:00:26]} 57. Kc4 {[%clk 0:00:41]}  Kd7 {[%clk 0:00:26]} 58. Kd5 {[%clk 0:00:41]}  Ke7 {[%clk 0:00:27]} 59. Re6+ {[%clk 0:00:40]}  Kf7 {[%clk 0:00:26]} 60. Rxe5 {[%clk 0:00:41]}  Bg3 {[%clk 0:00:26]} 61. Rf5+ {[%clk 0:00:40]} 1-0


[Site "https://www.chess.com"]

[Event "Early Titled Tuesday Blitz | February 8 2022"]
[White "Pakleza, Zbigniew"]
[Black "Onyshchuk, Volodymyr"]
[WhiteFideId "1119290"]
[BlackFideId "14114038"]
[WhiteElo "2467"]
[BlackElo "2642"]
[Result "0-1"]
[Round "03"]
[TimeControl "180+1"]
[Date "2022.02.08"]
[WhiteClock "0:00:04"]
[BlackClock "0:00:36"]

1. d4 {[%clk 0:03:00]}  d6 {[%clk 0:02:56]} 2. Nf3 {[%clk 0:03:01]}  g6 {[%clk 0:02:56]} 3. Bf4 {[%clk 0:03:01]}  Bg7 {[%clk 0:02:54]} 4. e3 {[%clk 0:03:02]}  Nf6 {[%clk 0:02:54]} 5. h3 {[%clk 0:03:02]}  O-O {[%clk 0:02:55]} 6. Be2 {[%clk 0:03:02]}  Nc6 {[%clk 0:02:55]} 7. O-O {[%clk 0:03:02]}  Re8 {[%clk 0:02:54]} 8. c4 {[%clk 0:02:59]}  Bd7 {[%clk 0:02:53]} 9. Nc3 {[%clk 0:02:59]}  e5 {[%clk 0:02:53]} 10. dxe5 {[%clk 0:02:58]}  dxe5 {[%clk 0:02:52]} 11. Bh2 {[%clk 0:02:58]}  Bf5 {[%clk 0:02:47]} 12. Qb3 {[%clk 0:02:38]}  Qc8 {[%clk 0:02:40]} 13. Rfd1 {[%clk 0:02:35]}  Nd7 {[%clk 0:02:27]} 14. Rd2 {[%clk 0:02:06]}  a5 {[%clk 0:02:21]} 15. Qd1 {[%clk 0:02:04]}  Nc5 {[%clk 0:02:17]} 16. Nd5 {[%clk 0:01:57]}  h6 {[%clk 0:02:11]} 17. Qf1 {[%clk 0:01:27]}  Be6 {[%clk 0:01:54]} 18. Rad1 {[%clk 0:01:15]}  Ne4 {[%clk 0:01:37]} 19. Rc2 {[%clk 0:01:12]}  Bxd5 {[%clk 0:01:28]} 20. cxd5 {[%clk 0:01:13]}  Nb4 {[%clk 0:01:28]} 21. Rcc1 {[%clk 0:00:57]}  Nxa2 {[%clk 0:01:27]} 22. Ra1 {[%clk 0:00:57]}  Nb4 {[%clk 0:01:27]} 23. Bb5 {[%clk 0:00:53]}  Re7 {[%clk 0:01:26]} 24. Nd2 {[%clk 0:00:44]}  Nd6 {[%clk 0:01:26]} 25. Be2 {[%clk 0:00:38]}  Nxd5 {[%clk 0:01:24]} 26. Nc4 {[%clk 0:00:33]}  Nxc4 {[%clk 0:01:21]} 27. Bxc4 {[%clk 0:00:33]}  Nb6 {[%clk 0:01:21]} 28. Ba2 {[%clk 0:00:32]}  c6 {[%clk 0:01:16]} 29. Qd3 {[%clk 0:00:28]}  Kh7 {[%clk 0:01:07]} 30. Qb3 {[%clk 0:00:24]}  Qc7 {[%clk 0:01:06]} 31. Rac1 {[%clk 0:00:24]}  Rd8 {[%clk 0:01:02]} 32. Rxd8 {[%clk 0:00:21]}  Qxd8 {[%clk 0:01:02]} 33. Qa3 {[%clk 0:00:22]}  Rd7 {[%clk 0:00:59]} 34. Bg3 {[%clk 0:00:19]}  Nd5 {[%clk 0:00:58]} 35. Bb1 {[%clk 0:00:15]}  Nb4 {[%clk 0:00:56]} 36. Kh2 {[%clk 0:00:16]}  b6 {[%clk 0:00:52]} 37. f3 {[%clk 0:00:14]}  Rd1 {[%clk 0:00:50]} 38. Qc3 {[%clk 0:00:10]}  e4 {[%clk 0:00:47]} 39. Qc4 {[%clk 0:00:08]}  Rxc1 {[%clk 0:00:45]} 40. Qxc1 {[%clk 0:00:09]}  exf3 {[%clk 0:00:45]} 41. gxf3 {[%clk 0:00:08]}  Qf6 {[%clk 0:00:46]} 42. b3 {[%clk 0:00:03]}  Qxf3 {[%clk 0:00:45]} 43. Qe1 {[%clk 0:00:01]}  h5 {[%clk 0:00:44]} 44. h4 {[%clk 0:00:02]}  Qd5 {[%clk 0:00:43]} 45. e4 {[%clk 0:00:03]}  Qxb3 {[%clk 0:00:42]} 46. e5 {[%clk 0:00:03]}  Nd3 {[%clk 0:00:38]} 47. Bxd3 {[%clk 0:00:03]}  Qxd3 {[%clk 0:00:38]} 48. Kh3 {[%clk 0:00:03]}  Qf5+ {[%clk 0:00:37]} 49. Kh2 {[%clk 0:00:04]}  a4 {[%clk 0:00:38]} 50. Qc1 {[%clk 0:00:05]}  Qe6 {[%clk 0:00:36]} 51. Qa3 {[%clk 0:00:04]}  b5 {[%clk 0:00:36]} 52. Qf3 {[%clk 0:00:04]}  b4 {[%clk 0:00:36]} 0-1


[Site "https://www.chess.com"]

[Event "Early Titled Tuesday Blitz | February 8 2022"]
[White "Pantzar, Milton"]
[Black "Iljin, Timofey"]
[WhiteFideId "1721003"]
[BlackFideId "14110180"]
[WhiteElo "2340"]
[BlackElo "2396"]
[Result "1-0"]
[Round "03"]
[TimeControl "180+1"]
[Date "2022.02.08"]
[WhiteClock "0:01:25"]
[BlackClock "0:00:45"]

1. Nf3 {[%clk 0:03:00]}  f5 {[%clk 0:02:56]} 2. d3 {[%clk 0:02:57]}  Nf6 {[%clk 0:02:55]} 3. e4 {[%clk 0:02:54]}  d6 {[%clk 0:02:55]} 4. exf5 {[%clk 0:02:48]}  Bxf5 {[%clk 0:02:35]} 5. d4 {[%clk 0:02:48]}  g6 {[%clk 0:02:31]} 6. Bd3 {[%clk 0:02:41]}  Qd7 {[%clk 0:02:32]} 7. O-O {[%clk 0:02:40]}  Bg7 {[%clk 0:02:32]} 8. Bxf5 {[%clk 0:02:32]}  Qxf5 {[%clk 0:02:30]} 9. c3 {[%clk 0:02:32]}  O-O {[%clk 0:02:29]} 10. Qb3+ {[%clk 0:02:31]}  Kh8 {[%clk 0:02:25]} 11. Qxb7 {[%clk 0:02:30]}  Nbd7 {[%clk 0:02:24]} 12. Qxc7 {[%clk 0:02:29]}  Nb6 {[%clk 0:01:55]} 13. Qxe7 {[%clk 0:02:22]}  Ne4 {[%clk 0:01:42]} 14. Qh4 {[%clk 0:02:03]}  Rae8 {[%clk 0:01:36]} 15. Bh6 {[%clk 0:01:38]}  Bf6 {[%clk 0:01:32]} 16. Qh3 {[%clk 0:01:37]}  Qb5 {[%clk 0:01:20]} 17. Bxf8 {[%clk 0:01:34]}  Rxf8 {[%clk 0:01:18]} 18. Nbd2 {[%clk 0:01:32]}  Nxd2 {[%clk 0:01:14]} 19. Nxd2 {[%clk 0:01:32]}  Qxb2 {[%clk 0:01:14]} 20. Ne4 {[%clk 0:01:31]}  Bg7 {[%clk 0:01:14]} 21. Nxd6 {[%clk 0:01:26]}  Nd5 {[%clk 0:01:09]} 22. Qe6 {[%clk 0:01:25]}  h6 {[%clk 0:00:45]} 23. Qxd5 {[%clk 0:01:25]} 1-0


[Site "https://www.chess.com"]